bitfinex/quotes_SOLUSD_20220128
["timestamp","ask_amount","ask_price","bid_price","bid_amount"]
[1643395445348,13.04,91.55,91.418,1.46895871]
[1643395445544,19.04,91.55,91.418,1.46895871]
[1643395445744,37.50617109,91.549,91.44,110.1]
[1643395445946,25.82182088,91.549,91.44,110.1]
[1643395446145,6.563,91.54,91.441,37.94249867]
[1643395446348,7.29343934,91.548,91.45,6.0]
[1643395446546,7.29343934,91.548,91.451,6.0]
[1643395446755,7.29343934,91.548,91.452,0.25]
[1643395446946,7.29343934,91.548,91.452,6.25]
[1643395447146,7.29343934,91.548,91.452,0.25]
[1643395448250,6.562,91.55,91.452,0.25]
[1643395448649,6.562,91.55,91.452,6.25]
[1643395448851,19.04,91.54,91.441,37.94249867]
[1643395449053,6.566,91.52,91.441,37.94249867]
[1643395449251,9.84898249,91.519,91.441,37.94249867]
[1643395449654,2.95669142,91.518,91.441,37.94249867]
[1643395450480,9.84898249,91.519,91.441,37.94249867]
[1643395450481,13.04,91.52,91.441,37.94249867]
[1643395450685,2.95669142,91.535,91.442,0.25]
[1643395450883,6.0,91.54,91.442,0.25]
[1643395451085,6.0,91.546,91.442,0.25]
[1643395451284,6.0,91.546,91.441,37.94249867]
[1643395451484,13.04,91.54,91.441,37.94249867]
[1643395451884,6.0,91.53,91.441,37.94249867]
[1643395452090,6.90050069,91.529,91.441,37.94249867]
[1643395452885,6.565,91.52,91.442,0.25]
[1643395453292,6.90050069,91.529,91.442,0.25]
[1643395453892,6.565,91.52,91.442,0.25]
[1643395454189,6.565,91.52,91.441,37.94249867]
[1643395454589,16.86512946,91.519,91.441,37.94249867]
[1643395454789,16.86512946,91.519,91.413,24.1466]
[1643395454996,6.566,91.5,91.414,0.25]
[1643395455191,16.516,91.5,91.4,1.46895871]
[1643395455391,16.516,91.5,91.263,11.07969833]
[1643395455392,6.0,91.49,91.386,1.46895871]
[1643395455602,19.04,91.49,91.386,1.46895871]
[1643395455792,6.0,91.486,91.387,36.94556651]
[1643395455992,6.0,91.479,91.387,36.94556651]
[1643395456393,28.99229204,91.489,91.387,36.94556651]
[1643395456591,13.04,91.5,91.39,1.46895871]
[1643395456794,16.86512946,91.51,91.397,6.0]
[1643395456991,16.86512946,91.51,91.397,7.46895871]
[1643395457290,16.86512946,91.51,91.406,6.0]
[1643395457491,6.566,91.5,91.408,6.0]
[1643395457690,6.566,91.5,91.407,40.20249982]
[1643395458394,16.86512946,91.507,91.407,40.20249982]
[1643395458593,69.15206013,91.513,91.417,6.0]
[1643395458790,16.5437,91.561,91.418,0.25]
[1643395458791,16.86512946,91.548,91.418,0.25]
[1643395458990,16.86512946,91.548,91.42,1.46895871]
[1643395459191,16.86512946,91.548,91.425,1.46895871]
[1643395459392,34.93219968,91.541,91.43,110.1]
[1643395459591,34.93219968,91.541,91.44,6.0]
[1643395459792,34.93219968,91.541,91.441,37.57789682]
[1643395459994,34.93219968,91.541,91.451,6.0]
[1643395460195,6.563,91.54,91.441,37.57789682]
[1643395460598,17.69157243,91.559,91.451,6.0]
[1643395460795,65.435837,91.56,91.452,0.25]
[1643395461001,52.395837,91.56,91.452,0.25]
[1643395461203,52.395837,91.56,91.464,1.46895871]
[1643395461395,52.395837,91.56,91.46,16.4]
[1643395461396,52.395837,91.56,91.469,1.46895871]
[1643395461599,33.51342688,91.587,91.479,6.0]
[1643395461797,33.51342688,91.587,91.48,13.29]
[1643395461998,67.79803104,91.614,91.481,110.1]
[1643395462196,67.79803104,91.614,91.49,110.1]
[1643395462398,67.79803104,91.614,91.492,110.1]
[1643395462596,1.5034825,91.637,91.503,110.1]
[1643395462800,1.5034825,91.645,91.505,110.1]
[1643395463009,6.0,91.635,91.515,6.0]
[1643395463196,2.95669142,91.65,91.516,30.9182]
[1643395463397,1.5034825,91.657,91.53,16.388]
[1643395463603,1.5034825,91.66,91.541,110.1]
[1643395463797,1.5034825,91.663,91.542,0.25]
[1643395464000,69.84229654,91.683,91.551,6.0]
[1643395464201,31.83633666,91.682,91.552,61.8446861]
[1643395464398,31.83633666,91.682,91.553,110.1]
[1643395464598,31.83633666,91.682,91.563,6.0]
[1643395464798,31.83633666,91.682,91.581,110.1]
[1643395464997,31.83633666,91.682,91.591,6.0]
[1643395465198,31.83633666,91.682,91.582,41.0270971]
[1643395465398,2.95669142,91.681,91.531,76.4415]
[1643395465598,13.04,91.67,91.531,76.4415]
[1643395465801,6.557,91.63,91.531,76.4415]
[1643395466401,4.38840011,91.629,91.532,49.22166135]
[1643395466600,7.34509153,91.629,91.542,6.0]
[1643395466805,6.0,91.619,91.532,49.22166135]
[1643395467001,6.558,91.61,91.532,49.22166135]
[1643395467202,29.78954058,91.609,91.533,0.25]
[1643395469004,29.78954058,91.609,91.542,6.0]
[1643395469613,29.78954058,91.609,91.48,13.04]
[1643395469811,29.78954058,91.609,91.448,2.9167694]
[1643395469812,6.559,91.59,91.458,1.46895871]
[1643395470010,6.559,91.59,91.451,24.27405871]
[1643395470212,6.559,91.59,91.451,22.8051]
[1643395470213,2.95669142,91.589,91.451,22.8051]
[1643395470412,6.0,91.58,91.451,22.8051]
[1643395470713,6.562,91.56,91.479,48.68517379]
[1643395470912,29.78954058,91.559,91.479,48.68517379]
[1643395471512,29.78954058,91.559,91.489,6.0]
[1643395474021,8.95669142,91.579,91.489,6.0]
[1643395474220,13.04,91.59,91.49,0.25]
[1643395474420,13.04,91.62,91.49,0.25]
[1643395474621,6.0,91.591,91.49,0.25]
[1643395475021,51.07976086,91.59,91.49,6.25]
[1643395475221,51.07976086,91.59,91.49,6.0]
[1643395475222,60.59545228,91.59,91.49,6.0]
[1643395475423,2.95669142,91.589,91.491,0.25]
[1643395476027,45.07976086,91.59,91.491,0.25]
[1643395476431,51.63976086,91.59,91.491,0.25]
[1643395477051,51.63976086,91.59,91.497,34.27008944]
[1643395477862,2.95669142,91.589,91.497,34.27008944]
[1643395478051,4.18497591,91.569,91.497,34.27008944]
[1643395478854,4.18497591,91.569,91.507,6.0]
[1643395479253,6.559,91.6,91.508,0.25]
[1643395479552,6.559,91.6,91.507,6.0]
[1643395479553,6.0,91.59,91.507,6.0]
[1643395480053,6.0,91.591,91.507,6.0]
[1643395480252,35.89223021,91.589,91.507,6.0]
[1643395480454,41.89223021,91.589,91.507,6.0]
[1643395480654,2.95669142,91.588,91.507,6.0]
[1643395480957,6.56,91.58,91.507,6.0]
[1643395481353,6.56,91.58,91.497,34.27008944]
[1643395481559,6.56,91.58,91.507,6.0]
[1643395482660,6.56,91.58,91.508,110.1]
[1643395483060,6.56,91.58,91.519,43.36805007]
[1643395484460,2.95669142,91.613,91.52,110.1]
[1643395484665,1.5034825,91.647,91.52,110.35]
[1643395484867,1.5034825,91.654,91.53,6.0]
[1643395485063,52.05459346,91.66,91.531,6.0]
[1643395485265,52.05459346,91.66,91.531,6.25]
[1643395485462,33.00972578,91.659,91.532,6.0]
[1643395485662,33.00972578,91.659,91.533,39.58721316]
[1643395485864,33.00972578,91.659,91.55,16.385]
[1643395486064,33.00972578,91.659,91.561,37.00724718]
[1643395486263,33.00972578,91.659,91.562,110.35]
[1643395486862,33.00972578,91.659,91.561,37.00724718]
[1643395487062,4.46017392,91.658,91.561,37.00724718]
[1643395487265,6.554,91.65,91.561,37.00724718]
[1643395487464,6.554,91.65,91.523,49.0784]
[1643395487668,13.04,91.64,91.52,24.5319]
[1643395487867,20.5434825,91.64,91.487,1.46895871]
[1643395488073,6.0,91.633,91.487,1.46895871]
[1643395488273,19.04,91.63,91.485,1.46895871]
[1643395488474,13.04,91.63,91.484,1.46895871]
[1643395488773,6.17170241,91.629,91.492,1.46895871]
[1643395488975,6.559,91.61,91.492,1.46895871]
[1643395489178,29.74877257,91.609,91.503,44.17322152]
[1643395489375,32.70546399,91.609,91.504,0.25]
[1643395489575,32.70546399,91.609,91.503,44.17322152]
[1643395489774,2.95669142,91.608,91.503,44.17322152]
[1643395490575,6.4759642,91.589,91.503,44.17322152]
[1643395490775,6.4759642,91.589,91.513,6.0]
[1643395491178,6.4759642,91.589,91.514,0.25]
[1643395491979,6.559,91.58,91.514,0.25]
[1643395492577,6.559,91.58,91.513,6.0]
[1643395494078,6.4759642,91.589,91.513,6.0]
[1643395494286,6.4759642,91.589,91.514,0.25]
[1643395494479,6.4759642,91.589,91.513,6.0]
[1643395494880,6.4759642,91.589,91.514,0.25]
[1643395495086,6.4759642,91.589,91.514,6.0]
[1643395495598,1.5034825,91.611,91.515,0.25]
[1643395495801,16.7506,91.618,91.515,110.35]
[1643395496197,16.7506,91.618,91.515,0.25]
[1643395496398,18.2540825,91.618,91.515,0.25]
[1643395496600,33.5450503,91.617,91.515,6.0]
[1643395497002,33.5450503,91.617,91.47,13.04]
[1643395497003,1.5034825,91.601,91.488,1.46895871]
[1643395497203,1.5034825,91.601,91.481,1.46895871]
[1643395497204,13.04,91.59,91.481,1.46895871]
[1643395497401,24.49,91.59,91.479,1.46895871]
[1643395497600,31.87957258,91.589,91.479,1.46895871]
[1643395497801,1.5034825,91.583,91.471,1.46895871]
[1643395498001,14.5434825,91.58,91.472,38.84941707]
[1643395498201,6.562,91.57,91.472,38.84941707]
[1643395498403,8.0654825,91.57,91.482,6.0]
[1643395498602,28.23772691,91.568,91.482,6.0]
[1643395498804,28.23772691,91.568,91.483,6.0]
[1643395499000,6.0,91.558,91.473,110.1]
[1643395499409,6.0,91.558,91.474,0.25]
[1643395499804,7.98700986,91.549,91.473,0.25]
[1643395500002,6.0,91.539,91.465,23.0327]
[1643395500204,14.59,91.539,91.465,23.0327]
[1643395500404,2.95669142,91.538,91.465,23.0327]
[1643395500906,2.95669142,91.538,91.47,47.91271318]
[1643395502106,6.562,91.54,91.47,47.91271318]
[1643395502316,2.95669142,91.569,91.471,0.25]
[1643395502506,2.95669142,91.569,91.471,110.35]
[1643395502704,1.5034825,91.589,91.48,6.0]
[1643395502913,13.04,91.59,91.48,6.0]
[1643395502914,14.5434825,91.59,91.481,0.25]
[1643395503106,11.40953267,91.609,91.482,1.46895871]
[1643395503107,1.5034825,91.604,91.482,1.46895871]
[1643395503311,2.95669142,91.609,91.49,1.46895871]
[1643395503505,6.558,91.6,91.5,6.0]
[1643395503910,6.558,91.6,91.501,110.35]
[1643395504106,6.558,91.6,91.511,6.0]
[1643395504308,30.53244753,91.599,91.512,35.04255005]
[1643395504706,6.559,91.59,91.513,0.25]
[1643395504908,30.53244753,91.599,91.513,0.25]
[1643395505110,1.5034825,91.616,91.513,11.16]
[1643395505308,1.5034825,91.622,91.522,6.0]
[1643395505510,1.5034825,91.628,91.523,6.0]
[1643395505710,1.5034825,91.632,91.523,6.0]
[1643395505910,34.89,91.66,91.523,6.0]
[1643395505911,1.5034825,91.639,91.524,0.25]
[1643395506110,1.5034825,91.645,91.527,6.0]
[1643395506311,1.5034825,91.652,91.53,17.85595871]
[1643395506510,1.5034825,91.655,91.541,110.1]
[1643395506710,1.5034825,91.655,91.541,122.85]
[1643395506915,1.5034825,91.657,91.551,6.0]
[1643395507118,1.5034825,91.668,91.56,13.04]
[1643395507312,1.5034825,91.674,91.561,0.25]
[1643395507512,1.5034825,91.678,91.571,153.00601556]
[1643395507715,1.5034825,91.68,91.6,16.374]
[1643395507916,34.53443052,91.691,91.601,40.04924767]
[1643395508115,34.53443052,91.691,91.611,116.1]
[1643395508314,6.0,91.681,91.612,0.25]
[1643395508517,6.0,91.68,91.612,9.45]
[1643395509015,6.0,91.68,91.613,0.25]
[1643395509216,6.0,91.681,91.613,110.35]
[1643395509619,6.0,91.682,91.613,110.35]
[1643395509816,6.0,91.682,91.613,0.25]
[1643395510217,6.0,91.682,91.611,6.0]
[1643395510419,6.0,91.682,91.612,0.25]
[1643395510819,6.552,91.68,91.612,0.25]
[1643395512016,32.67035271,91.689,91.612,6.25]
[1643395512417,6.0,91.679,91.612,6.0]
[1643395512617,6.0,91.678,91.611,6.0]
[1643395512816,8.95669142,91.678,91.611,6.0]
[1643395513216,6.0,91.678,91.611,6.0]
[1643395513417,6.0,91.678,91.612,0.25]
[1643395513617,6.0,91.679,91.621,6.0]
[1643395513816,6.0,91.679,91.622,0.25]
[1643395514017,6.0,91.688,91.622,6.25]
[1643395514419,17.39820065,91.739,91.622,6.25]
[1643395514420,1.5034825,91.706,91.623,41.11617049]
[1643395514620,1.5034825,91.716,91.633,6.0]
[1643395514931,1.5034825,91.73,91.634,0.25]
[1643395515122,1.5034825,91.732,91.634,0.25]
[1643395515320,3.01180772,91.757,91.633,6.0]
[1643395515321,1.5034825,91.727,91.633,6.0]
[1643395515522,6.551,91.7,91.633,6.0]
[1643395515721,6.551,91.7,91.623,41.11617049]
[1643395515722,1.758441,91.699,91.623,41.11617049]
[1643395516023,4.71513242,91.699,91.623,41.11617049]
[1643395516221,1.758441,91.699,91.623,41.11617049]
[1643395516620,1.758441,91.699,91.624,0.25]
[1643395517120,1.758441,91.699,91.623,41.11617049]
[1643395517321,6.0,91.689,91.624,0.25]
[1643395517920,10.99898737,91.736,91.624,0.25]
[1643395517921,1.5034825,91.727,91.633,6.0]
[1643395518120,6.0,91.717,91.633,6.0]
[1643395518330,6.0,91.717,91.601,24.9897]
[1643395518521,2.95669142,91.716,91.611,6.0]
[1643395518722,6.0,91.706,91.601,24.9897]
[1643395518927,13.04,91.7,91.555,22.8662]
[1643395519227,0.32143574,91.691,91.534,47.1601]
[1643395519422,13.04,91.68,91.534,47.1601]
[1643395519721,0.30041835,91.66,91.497,75.1772]
[1643395519926,6.558,91.62,91.497,75.1772]
[1643395520125,6.0,91.61,91.497,75.1772]
[1643395520322,6.0,91.61,91.507,6.0]
[1643395520625,9.08313616,91.609,91.508,35.35288008]
[1643395521021,6.0,91.599,91.508,35.35288008]
[1643395521422,27.14160061,91.589,91.508,35.35288008]
[1643395521832,6.0,91.579,91.508,35.35288008]
[1643395522221,6.56,91.57,91.508,35.35288008]
[1643395522421,9.08313616,91.569,91.508,35.35288008]
[1643395522921,6.0,91.559,91.508,35.35288008]
[1643395523121,2.95669142,91.599,91.508,35.35288008]
[1643395523322,19.598,91.61,91.51,16.391]
[1643395523525,6.0,91.6,91.51,16.391]
[1643395524121,34.30032899,91.599,91.471,23.3988]
[1643395524321,6.56,91.57,91.472,0.25]
[1643395524621,6.56,91.57,91.471,23.3988]
[1643395524822,6.0,91.56,91.471,23.3988]
[1643395525024,6.0,91.56,91.471,110.1]
[1643395525226,4.8810992,91.559,91.472,35.25560167]
[1643395525426,4.8810992,91.559,91.473,110.1]
[1643395525623,4.8810992,91.559,91.483,6.0]
[1643395525824,4.8810992,91.559,91.484,0.25]
[1643395526026,4.8810992,91.559,91.484,110.35]
[1643395526225,4.8810992,91.559,91.484,109.85]
[1643395526425,6.0,91.56,91.494,6.0]
[1643395526624,6.0,91.58,91.495,109.85]
[1643395527025,6.0,91.58,91.505,6.0]
[1643395527427,33.28908784,91.579,91.506,35.60158921]
[1643395527626,6.0,91.569,91.516,6.0]
[1643395528025,6.0,91.569,91.517,6.0]
[1643395528226,6.0,91.569,91.456,79.54475871]
[1643395528427,6.0,91.569,91.456,78.0758]
[1643395528627,6.0,91.569,91.491,6.0]
[1643395528827,6.0,91.569,91.492,0.25]
[1643395529028,6.0,91.569,91.492,35.88317501]
[1643395529826,0.25,91.568,91.492,0.25]
[1643395530026,13.13669142,91.568,91.456,78.0758]
[1643395530430,6.0,91.558,91.456,78.0758]
[1643395530832,2.93564893,91.557,91.457,43.77947316]
[1643395531432,2.93564893,91.557,91.458,0.25]
[1643395532431,2.93564893,91.557,91.458,110.35]
[1643395532632,1.5034825,91.611,91.459,2.95669142]
[1643395532829,13.04,91.61,91.469,110.1]
[1643395533132,15.99669142,91.61,91.47,6.0]
[1643395533332,2.95669142,91.609,91.479,6.0]
[1643395533529,26.55094895,91.608,91.48,44.68026296]
[1643395533730,26.55094895,91.608,91.5,16.393]
[1643395533932,26.55094895,91.608,91.5,28.973]
[1643395534132,26.55094895,91.608,91.482,23.6012]
[1643395534133,0.31368678,91.603,91.482,23.6012]
[1643395534331,13.04,91.59,91.45,1.46895871]
[1643395534534,13.04,91.58,91.444,23.5669]
[1643395534738,13.04,91.58,91.445,110.1]
[1643395534739,24.41,91.58,91.445,110.1]
[1643395534937,9.67378782,91.579,91.462,39.98037356]
[1643395535136,12.88047924,91.579,91.462,39.98037356]
[1643395535336,6.0,91.569,91.462,39.98037356]
[1643395535544,6.563,91.56,91.445,110.1]
[1643395535746,15.253,91.56,91.444,23.5669]
[1643395535942,6.0,91.55,91.444,23.5669]
[1643395536143,19.04,91.55,91.443,24.3212]
[1643395536342,2.95669142,91.549,91.443,24.3212]
[1643395536549,6.563,91.53,91.443,24.3212]
[1643395536773,9.67378782,91.529,91.443,24.3212]
[1643395536980,9.67378782,91.529,91.439,39.52582391]
[1643395537180,6.0,91.519,91.44,0.25]
[1643395537381,6.0,91.519,91.422,0.25]
[1643395538075,6.564,91.51,91.422,48.04407775]
[1643395538378,6.564,91.51,91.421,23.2311]
[1643395538379,26.53128265,91.509,91.421,23.2311]
[1643395539177,2.95669142,91.508,91.393,1.46895871]
[1643395539375,2.95669142,91.508,91.282,23.86028355]
[1643395539376,0.32029922,91.495,91.387,1.46895871]
[1643395539574,21.894,91.48,91.362,1.46895871]
[1643395539774,46.504,91.48,91.356,48.7763]
[1643395539977,4.74,91.476,91.356,48.7763]
[1643395540173,6.0,91.47,91.356,48.7763]
[1643395540376,13.04,91.47,91.345,99.3651]
[1643395540575,21.903,91.44,91.335,1.46895871]
[1643395540781,21.903,91.44,91.311,45.879]
[1643395540782,44.413,91.44,91.329,1.46895871]
[1643395540979,2.95669142,91.439,91.322,1.46895871]
[1643395541274,6.0,91.43,91.313,1.46895871]
[1643395541475,32.53128265,91.429,91.341,46.84855018]
[1643395541775,9.69345412,91.409,91.342,0.25]
[1643395541975,6.0,91.399,91.341,46.84855018]
[1643395543178,9.69345412,91.409,91.342,0.25]
[1643395544184,9.69345412,91.409,91.341,46.84855018]
[1643395544381,9.69345412,91.409,91.311,45.879]
[1643395544579,6.0,91.399,91.321,6.0]
[1643395544780,19.64,91.399,91.321,6.0]
[1643395545282,6.0,91.398,91.321,6.0]
[1643395545481,6.0,91.389,91.334,47.835613]
[1643395545682,21.909,91.42,91.334,47.835613]
[1643395545881,13.04,91.44,91.335,0.25]
[1643395546084,6.0,91.43,91.335,0.25]
[1643395546282,6.572,91.41,91.335,0.25]
[1643395546482,26.64735858,91.409,91.334,47.835613]
[1643395547082,26.64735858,91.409,91.344,6.0]
[1643395547684,0.25,91.408,91.334,47.835613]
[1643395547881,0.25,91.408,91.335,0.25]
[1643395549783,6.572,91.4,91.29,16.43]
[1643395549986,6.0,91.39,91.285,1.46895871]
[1643395550184,18.48,91.39,91.281,48.4775]
[1643395550786,18.48,91.39,91.33,44.1804002]
[1643395551584,6.0,91.39,91.33,44.1804002]
[1643395551985,6.574,91.38,91.33,44.1804002]
[1643395552185,9.57737819,91.379,91.33,44.1804002]
[1643395552786,9.57737819,91.379,91.281,48.4775]
[1643395552987,0.53484759,91.37,91.314,6.0]
[1643395553206,13.04,91.42,91.314,6.0]
[1643395553388,13.04,91.45,91.34,11.95]
[1643395553589,16.3147,91.451,91.34,11.95]
[1643395553891,21.9,91.45,91.34,11.95]
[1643395554088,6.57,91.43,91.34,0.7]
[1643395554287,33.03,91.43,91.34,0.7]
[1643395554487,6.0,91.42,91.34,0.7]
[1643395554687,19.04,91.42,91.34,0.7]
[1643395555190,21.913,91.41,91.341,45.56778067]
[1643395555389,31.343,91.41,91.341,45.56778067]
[1643395555894,6.574,91.4,91.341,45.56778067]
[1643395556095,6.0,91.4,91.341,45.56778067]
[1643395556295,1.36638513,91.419,91.341,45.56778067]
[1643395556900,6.572,91.41,91.341,45.56778067]
[1643395557899,17.942,91.41,91.341,45.56778067]
[1643395558100,17.942,91.41,91.34,0.7]
[1643395558399,30.982,91.41,91.34,0.7]
[1643395558602,6.0,91.4,91.34,0.7]
[1643395559102,6.0,91.4,91.341,45.52301621]
[1643395559699,12.572,91.4,91.341,45.52301621]
[1643395561105,6.0,91.4,91.341,45.52301621]
[1643395561505,6.25,91.409,91.341,45.52301621]
[1643395562305,6.573,91.4,91.341,45.52301621]
[1643395563522,6.573,91.4,91.34,0.7]
[1643395563723,15.743,91.4,91.34,0.7]
[1643395563925,6.574,91.38,91.34,0.7]
[1643395564226,18.584,91.38,91.34,0.7]
[1643395564722,30.28957866,91.379,91.34,0.7]
[1643395565324,0.25,91.378,91.34,0.7]
[1643395565525,12.574,91.39,91.34,0.7]
[1643395565728,13.04,91.41,91.34,0.7]
[1643395565926,34.943,91.44,91.34,0.7]
[1643395566124,6.0,91.43,91.34,0.7]
[1643395566527,34.19644493,91.429,91.341,49.01328809]
[1643395566932,6.0,91.419,91.341,49.01328809]
[1643395567326,0.25,91.418,91.341,49.01328809]
[1643395568025,6.572,91.41,91.341,49.01328809]
[1643395568425,6.0,91.4,91.341,49.01328809]
[1643395568625,2.02829184,91.399,91.341,49.01328809]
[1643395569025,2.02829184,91.399,91.34,0.7]
[1643395570027,2.02829184,91.399,91.341,48.72875279]
[1643395570933,2.95669142,91.398,91.34,0.7]
[1643395571129,13.04,91.39,91.294,1.46895871]
[1643395571328,6.0,91.388,91.294,1.46895871]
[1643395571532,6.0,91.38,91.291,1.46895871]
[1643395571730,15.56,91.38,91.292,1.46895871]
[1643395571934,31.79943772,91.379,91.293,38.22042835]
[1643395572134,25.79943772,91.379,91.294,1.46895871]
[1643395572331,25.79943772,91.379,91.286,1.46895871]
[1643395572532,6.576,91.37,91.283,1.46895871]
[1643395572730,6.576,91.37,91.28,1.46895871]
[1643395572934,2.95669142,91.369,91.278,1.46895871]
[1643395573133,2.95669142,91.369,91.279,1.46895871]
[1643395573333,0.25,91.368,91.284,35.24182539]
[1643395573836,2.95669142,91.367,91.284,35.24182539]
[1643395574034,25.79943772,91.379,91.295,1.46895871]
[1643395574234,25.79943772,91.379,91.299,1.46895871]
[1643395574436,25.79943772,91.379,91.3,44.28490818]
[1643395574834,25.79943772,91.379,91.301,0.25]
[1643395575034,1.5034825,91.411,91.31,6.0]
[1643395575338,1.5034825,91.439,91.324,1.46895871]
[1643395575539,1.5034825,91.451,91.336,1.46895871]
[1643395575736,1.5034825,91.466,91.351,1.46895871]
[1643395575936,33.14810856,91.444,91.352,39.33712859]
[1643395576136,33.14810856,91.444,91.362,6.0]
[1643395576337,33.14810856,91.444,91.363,110.35]
[1643395576539,33.14810856,91.444,91.367,6.0]
[1643395576739,33.14810856,91.444,91.373,6.0]
[1643395576939,1.5034825,91.482,91.374,110.1]
[1643395577141,1.5034825,91.484,91.384,6.0]
[1643395577339,1.5034825,91.484,91.385,110.35]
[1643395577537,1.5034825,91.51,91.395,6.0]
[1643395577938,29.17697696,91.509,91.397,110.1]
[1643395578141,29.17697696,91.509,91.4,6.0]
[1643395578437,29.17697696,91.509,91.407,6.0]
[1643395578640,1.5034825,91.508,91.408,6.0]
[1643395578839,1.7534825,91.508,91.409,0.25]
[1643395579039,1.7534825,91.508,91.411,6.0]
[1643395579237,0.25,91.508,91.412,35.8943897]
[1643395579441,0.25,91.508,91.42,6.0]
[1643395579639,0.25,91.508,91.422,6.0]
[1643395579839,0.25,91.508,91.423,6.25]
[1643395580040,6.565,91.5,91.423,6.0]
[1643395580239,6.565,91.5,91.424,0.25]
[1643395581240,6.565,91.5,91.423,0.25]
[1643395581441,29.17697696,91.509,91.423,0.25]
[1643395582047,29.17697696,91.509,91.423,6.25]
[1643395582243,1.5034825,91.523,91.424,0.25]
[1643395582645,6.0,91.513,91.414,47.033]
[1643395583046,1.5034825,91.51,91.412,35.8943897]
[1643395583244,6.0,91.506,91.413,0.25]
[1643395583443,31.49850746,91.511,91.413,110.35]
[1643395583745,2.95669142,91.506,91.413,0.25]
[1643395584944,6.565,91.51,91.413,110.35]
[1643395586045,1.5034825,91.525,91.424,110.1]
[1643395586246,1.5034825,91.531,91.425,0.25]
[1643395586450,1.5034825,91.531,91.435,110.1]
[1643395586647,1.5034825,91.533,91.434,6.0]
[1643395586846,1.5034825,91.533,91.435,0.25]
[1643395587053,6.563,91.53,91.435,42.65299213]
[1643395587248,0.25,91.529,91.436,0.25]
[1643395587451,0.25,91.529,91.435,42.65299213]
[1643395587648,0.25,91.529,91.436,0.25]
[1643395587849,0.25,91.529,91.435,42.65299213]
[1643395588052,3.20669142,91.529,91.435,42.65299213]
[1643395588250,6.565,91.51,91.435,42.65299213]
[1643395588450,5.36808822,91.509,91.435,42.65299213]
[1643395588851,1.5034825,91.529,91.436,0.25]
[1643395589272,0.25,91.528,91.436,0.25]
[1643395589676,19.603,91.53,91.436,0.25]
[1643395589875,1.5034825,91.535,91.436,0.25]
[1643395590077,1.5034825,91.546,91.446,110.1]
[1643395590276,1.5034825,91.557,91.447,0.25]
[1643395590474,1.5034825,91.557,91.456,6.0]
[1643395590672,1.5034825,91.558,91.456,6.0]
[1643395590875,32.28792318,91.557,91.457,41.21904464]
[1643395591077,31.78792318,91.557,91.47,16.399]
[1643395591277,0.25,91.556,91.471,38.24928297]
[1643395591574,6.56,91.57,91.481,6.0]
[1643395591776,6.56,91.57,91.482,110.35]
[1643395591977,1.5034825,91.575,91.482,0.25]
[1643395592181,6.559,91.58,91.492,6.0]
[1643395592380,26.37028049,91.578,91.493,43.57240916]
[1643395592577,26.37028049,91.578,91.503,6.0]
[1643395592778,26.37028049,91.578,91.504,0.25]
[1643395592977,26.37028049,91.578,91.493,43.57240916]
[1643395592978,6.56,91.57,91.493,43.32240916]
[1643395593378,0.25,91.569,91.493,43.32240916]
[1643395593779,1.5034825,91.577,91.493,43.32240916]
[1643395593978,29.32697191,91.578,91.493,43.32240916]